[Event "VIII Open Semana Santa 2024"]
[Site "San Vicente del Raspeig"]
[Date "2024.03.29"]
[Round "4.1"]
[White "Espinosa Aranda, Angel"]
[Black "Alekseenko, Kirill"]
[Result "1/2-1/2"]
[ECO "B50"]
[WhiteElo "2440"]
[BlackElo "2650"]
[Annotator "TA"]
[PlyCount "61"]
[EventDate "2024.03.27"]
[EventType "swiss"]
[EventCountry "ESP"]
[SourceTitle "playchess.com"]
[Source "ChessBase"]
[SourceQuality "1"]
[TimeControl "5400+30"]

{[%evp 9,61,13,18,12,19,12,11,14,45,16,20,19,16,26,21,19,20,33,18,23,14,14,23,20,26,17,55,68,56,25,49,0,46,41,38,49,46,49,47,44,37,18,16,6,30,0,0,0,0,0,0,0,0,0]} 1. e4 {[%emt 0:00:58]} c5 {[%emt 0:07:47]} 2. Nf3 d6 3. Bc4 {[%emt 0:01:00]} e6 {[%emt 0:02:02]} 4. O-O {[%emt 0:00:40]} a6 {[%emt 0:01:20]} 5. Re1 {[%emt 0:01:35]} Nf6 {[%emt 0:05:57]} 6. Bf1 {[%emt 0:02:30]} Be7 {[%emt 0:12:08]} 7. c3 {[%emt 0:02:19]} O-O {[%emt 0:07:05]} 8. d4 {[%emt 0:01:44]} Nbd7 {[%emt 0:00:14]} 9. Nbd2 {[%emt 0:09:58]} b6 {[%emt 0:02:51]} 10. e5 {[%emt 0:09:01]} Ne8 {[%emt 0:01:13]} 11. Ne4 {[%emt 0:01:57]} cxd4 {[%emt 0:10:07]} 12. exd6 {[%emt 0:08:15]} Nxd6 {[%emt 0:01:55]} 13. Nxd6 {[%emt 0:00:10]} Bxd6 {[%emt 0:00:06]} 14. Qxd4 {[%emt 0:00:04]} Bc5 {[%emt 0:03:39]} 15. Qe4 {[%emt 0:00:51]} Ra7 {[%emt 0:01:49]} 16. Bg5 {[%emt 0:05:07]} Nf6 {[%emt 0:03:13]} 17. Qe2 {[%emt 0:04:00] With the idea Ne5.} Qc7 {[%emt 0:07:39]} 18. Bxf6 {[%emt 0:05:44]} gxf6 {[%emt 0:00:11]} 19. Qe4 {[%emt 0:00:10]} Bb7 {[%emt 0:10:53]} 20. Qg4+ {[%emt 0:00:27]} Kh8 {[%emt 0:00:04]} 21. Qh4 {[%emt 0:00:07]} Be7 {[%emt 0:03:13]} 22. Bd3 {[%emt 0:06:09][%csl Gd3][%cal Rh4h7] [#]} f5 {[%emt 0:00:06]} 23. Ng5 {[%emt 0:00:07]} Bxg5 {[%emt 0:00:15]} 24. Qxg5 {[%emt 0:00:05]} Qd8 {[%emt 0:05:39] Repels Qf6+} 25. Qxd8 {[%emt 0:00:57]} Rxd8 {[%emt 0:00:01]} 26. Rad1 {[%emt 0:00:09]} b5 {[%emt 0:01:13]} 27. c4 {[%emt 0:10:40]} Bc6 {[%emt 0:03:46] The position is equal.} 28. Be2 {[%emt 0:02:20]} Rad7 {[%emt 0:00:58]} 29. Rxd7 {[%emt 0:02:12]} Rxd7 {[%emt 0:00:13]} 30. cxb5 {[%emt 0:00:13]} Bxb5 {[%emt 0:05:05]} 31. Bxb5 {[%emt 0:01:37] Weighted Error Value: White=0.06 (flawless) /Black=0.07 (flawless) .  Inaccurate:     	White=3     	Black=3      OK:         	White=11    	Black=9      Best:        	White=2     	Black=2} 1/2-1/2

[Event "VIII Open Semana Santa 2024"]
[Site "San Vicente del Raspeig"]
[Date "2024.03.29"]
[Round "4.2"]
[White "Ivanchuk, Vasyl"]
[Black "Heimann, Mark"]
[Result "1/2-1/2"]
[ECO "B15"]
[WhiteElo "2625"]
[BlackElo "2435"]
[Annotator "TA"]
[PlyCount "27"]
[EventDate "2024.03.27"]
[EventType "swiss"]
[EventCountry "ESP"]
[SourceTitle "playchess.com"]
[Source "ChessBase"]
[SourceQuality "1"]
[TimeControl "5400+30"]

{[%evp 15,27,22,27,20,45,58,72,78,81,79,132,80,104,112]} 1. e4 {[%emt 0:00:30]} c6 {[%emt 0:00:30]} 2. d4 {[%emt 0:00:30]} d5 {[%emt 0:00:30]} 3. Nd2 {[%emt 0:00:30]} dxe4 {[%emt 0:00:30]} 4. Nxe4 {[%emt 0:00:30]} Nf6 {[%emt 0:00:30]} 5. Nxf6+ {[%emt 0:00:30]} exf6 {[%emt 0:00:30]} 6. c3 {[%emt 0:00:30]} Bd6 {[%emt 0:00:30]} 7. Bd3 {[%emt 0:00:30]} O-O {[%emt 0:00:30]} 8. Ne2 {[%emt 0:00:30]} Re8 {[%emt 0:00:30]} 9. O-O {[%emt 0:00:30]} Qc7 10. Ng3 {[%emt 1:31:00]} Be6 {[%emt 0:09:06]} 11. f4 {[%emt 0:00:00]} c5 {[%emt 0:14:40][%cal Bc6c5,Bc5c4][%mdl 32]} 12. d5 {[%emt 0:00:00]} Bc8 {[%emt 0:00:55]} (12... c4 $142) 13. Qc2 {[%emt 0:00:00]} (13. c4 $142) 13... c4 $16 {[%emt 0:09:26]} 14. Bxh7+ {[%emt 0:00:00] White took control after the opening.   Weighted Error Value: White=0.11 (very precise) /Black=0.17 (very precise) .  Mistake:       	White=1     	Black=1      OK:         	White=3     	Black=1      Best:        	White=1     	---} 1/2-1/2

[Event "VIII Open Semana Santa 2024"]
[Site "San Vicente del Raspeig"]
[Date "2024.03.29"]
[Round "4.3"]
[White "Martin, Julian"]
[Black "Yuffa, Daniil"]
[Result "1/2-1/2"]
[ECO "B81"]
[WhiteElo "2408"]
[BlackElo "2606"]
[Annotator "TA"]
[PlyCount "75"]
[EventDate "2024.03.27"]
[EventType "swiss"]
[EventCountry "ESP"]
[SourceTitle "playchess.com"]
[Source "ChessBase"]
[SourceQuality "1"]
[TimeControl "5400+30"]

{[%evp 34,75,-68,-64,-64,-62,-34,-28,-37,-41,-31,-122,-110,-152,-119,-171,-162,-251,-32,-26,-37,-33,-24,-122,-34,-39,-35,-39,-35,-33,-30,-39,-22,-15,-7,-6,0,-22,0,-2,0,-27,-11,-50]} 1. e4 {[%emt 0:00:30]} c5 {[%emt 0:00:30]} 2. Nf3 {[%emt 0:00:30]} d6 {[%emt 0:00:30]} 3. d4 {[%emt 0:00:30]} cxd4 {[%emt 0:00:30]} 4. Nxd4 {[%emt 0:00:30]} Nf6 {[%emt 0:00:30]} 5. Nc3 {[%emt 0:00:30]} a6 6. Be3 e6 {[%emt 0:04:02]} 7. g4 {[%emt 1:31:30]} e5 {[%emt 0:00:43]} 8. Nf5 {[%emt 0:00:00]} g6 {[%emt 0:00:09]} 9. g5 {[%emt 0:00:00]} gxf5 {[%emt 0:00:09]} 10. exf5 {[%emt 0:00:00]} d5 {[%emt 0:00:50]} 11. gxf6 {[%emt 0:00:00]} d4 {[%emt 0:00:58]} 12. Bc4 {[%emt 0:00:00]} Bxf5 {[%emt 0:00:15] B81: Sicilian Scheveningen: Keres Attack.} 13. Qh5 {[%emt 0:00:00]} Qxf6 {[%emt 0:00:16]} 14. Nd5 {[%emt 0:00:00]} Qg6 {[%emt 0:01:06]} 15. Qh4 {[%emt 0:00:00]} Nc6 $146 {[%emt 0:16:49]} ({Predecessor:} 15... Bxc2 16. Bxd4 exd4 17. Qxd4 Nc6 18. Qe3+ Kd7 19. Nb6+ Kd8 20. Nxa8 Bd6 21. Kd2 Re8 {½-½ Kuznetsov,F (2255)-Putrenko,K (2132) St Petersburg Amir Cup Blitz 2021 (10)}) 16. O-O-O {[%emt 0:00:00]} Be7 {[%emt 0:02:03]} 17. Nxe7 {[%emt 0:00:00]} Nxe7 {[%emt 0:00:18]} 18. Bg5 $1 {[%emt 0:00:00]} Rc8 {[%emt 0:10:18]} 19. b3 {[%emt 0:00:00]} b5 {[%emt 0:18:50]} (19... Bxc2 {seems wilder.} 20. Bxe7 Bxd1 21. Rxd1 b5) 20. Bxe7 {[%emt 0:00:00]} bxc4 {[%emt 0:00:06]} 21. b4 $1 {[%emt 0:00:00]} Rc6 {[%emt 0:15:41]} (21... Bxc2 {looks sharper.} 22. Rhg1 Qe6 23. Bf6 Bxd1 24. Bxh8 Kd7) 22. Rhe1 {[%emt 0:00:00]} (22. Bc5 $1 $15 f6 (22... Bxc2 23. Qe7#) 23. Rhe1) 22... Qe6 $1 $17 {[%emt 0:14:34]} (22... Bxc2 23. Rxd4 f6 (23... exd4 $2 24. Qxd4 f6 25. Bc5+ $18) 24. Bxf6 (24. Rxc4 Rxc4 25. Qxc4 Kxe7 $11) (24. Rd8+ $2 Kxe7 25. Rxh8 Bb1 $19) 24... Qxf6 25. Qxf6 (25. Kxc2 Qxh4 26. Rxh4 O-O $16) 25... Rxf6 26. Rxe5+ (26. Kxc2 Rxf2+ 27. Rd2 O-O $14) 26... Kf7 27. Rd7+ (27. Kxc2 Rxf2+ 28. Rd2 Rf3 $16) 27... Kg6 28. Kxc2 Rxf2+ 29. Rd2 $18) 23. Bc5 {[%emt 0:00:00]} d3 {[%emt 0:01:13]} (23... Bg4 $2 24. Rxd4 Qh6+ 25. Qxh6 Rxh6 26. Rxg4 $18) 24. Re3 {[%emt 0:00:01] [#]} (24. Kb2 $17) 24... Rg8 $1 $19 {[%emt 0:02:15]} (24... dxc2 25. Rd8#) 25. Qh5 {[%emt 0:02:58]} (25. c3 {was worth a try.}) 25... e4 $2 {[%emt 0:06:07]} (25... dxc2 26. Rde1 Kd8 27. Rf3 $19 (27. Rxe5 $2 Qxe5 $19)) (25... a5 $19 {...c3 would now be deadly.} 26. Bd4 e4 (26... dxc2 27. Rxe5 cxd1=Q+ 28. Qxd1 $11)) 26. cxd3 $1 $15 {[%emt 0:01:06]} cxd3 {[%emt 0:00:13]} 27. Rdxd3 {[%emt 0:00:23]} Qxa2 {[%emt 0:01:51]} 28. Rg3 {[%emt 0:02:46] [#]} (28. Qxf5 $2 Rg1+ 29. Rd1 Qa1+ 30. Kc2 Qxd1+ $19 (30... Rxd1 31. Qxe4+ Re6 32. Qa8+ Kd7 33. Qb7+ Kd8 34. Bb6+ Ke8 35. Qa8+ Ke7 36. Bc5+ Kd7 37. Qb7+ Kd8 38. Bb6+ Ke8 39. Qc8+ Ke7 40. Bc5+ Kf6 41. Rf3+ Kg5 42. Qg8+ Rg6 43. h4+ Kg4 44. Rg3+ Kf4 45. Qxf7+ Qf6 46. Be3+ Ke5 47. Rg5+ Rxg5 48. Qxf6+ Kxf6 49. hxg5+ Kf7 50. Kxd1 $18)) (28. Rd1 $11 {was the only way to keep the balance.} Qe6 (28... Qxf2 29. Rxe4+ Be6 30. Rxe6+ Rxe6 31. Bxf2 Rg2 32. Qd5 Kf8 33. Qxg2) 29. Kb2) 28... Qa1+ {[%emt 0:00:14]} (28... Rxc5+ $1 $17 29. bxc5 Qa1+ 30. Kd2 Bg6 31. Rd8+ (31. Qd5 $2 exd3 32. Qa8+ Ke7 $19) 31... Kxd8 32. Qd5+ Ke8 (32... Kc7 33. Qd6+ Kc8 34. Qc6+ Kd8 35. Qb6+ Ke8 36. Qb8+ Kd7 37. Qd6+ Ke8 38. Rb3 $11) 33. Qa8+ Ke7 34. Qxg8 Qb2+ (34... Qf1 35. Qc8 $16) 35. Ke3 Qc1+ 36. Kd4 Qd2+ 37. Kc4 f6 38. Rxg6 (38. Qd5 $2 Bf7 $19) 38... Qd3+ (38... hxg6 39. Qg7+ Ke6 40. Qg8+ Ke5 41. Qb8+ Kf5 42. c6 $11) 39. Kb4 Qb5+ (39... hxg6 40. Qg7+ Ke6 41. Qg8+ Ke5 42. Qe8+ Kf4 43. c6 $11) 40. Ka3 Qxc5+ (40... hxg6 41. Qc8 $15) 41. Kb3 Qb5+ (41... hxg6 42. Qxg6 Qxf2 43. Qxe4+ Kf8 44. Qa8+ Kf7 45. Qxa6 $15) 42. Ka3 hxg6 43. Qxg6 Qd3+ 44. Kb4 Qd6+ 45. Kc3 Qf4 (45... Qxh2 46. Qg7+ Ke6 47. Qg8+ Ke7 48. Qg7+ Ke6 49. Qg8+ Ke7 50. Qg7+ $11)) 29. Kd2 $15 {[%emt 0:00:09]} Rxg3 {[%emt 0:02:24]} 30. Rxg3 {[%emt 0:00:17]} Qb2+ {[%emt 0:00:46]} 31. Ke1 {[%emt 0:00:37]} Qc1+ {[%emt 0:00:37]} 32. Ke2 {[%emt 0:01:53]} Rf6 {[%emt 0:00:29]} 33. Qh4 {[%emt 0:01:02]} Qc4+ {[%emt 0:00:25]} 34. Ke1 {[%emt 0:00:14]} Qc1+ {[%emt 0:00:18]} 35. Ke2 {[%emt 0:00:03]} Qc4+ {[%emt 0:00:45]} 36. Ke1 {[%emt 0:00:04]} Qc1+ {[%emt 0:00:21]} 37. Ke2 {[%emt 0:03:27]} Qb2+ 38. Ke1 {[%emt 0:00:30]} 1/2-1/2

[Event "VIII Open Semana Santa 2024"]
[Site "San Vicente del Raspeig"]
[Date "2024.03.29"]
[Round "4.4"]
[White "Piorun, Kacper"]
[Black "Lopez Mulet, Inigo"]
[Result "1-0"]
[ECO "D20"]
[WhiteElo "2599"]
[BlackElo "2423"]
[Annotator "TA"]
[PlyCount "65"]
[EventDate "2024.03.27"]
[EventType "swiss"]
[EventCountry "ESP"]
[SourceTitle "playchess.com"]
[Source "ChessBase"]
[SourceQuality "1"]
[TimeControl "5400+30"]

{[%evp 17,65,0,0,0,0,0,0,0,12,0,0,0,0,0,25,32,63,48,50,47,103,100,144,130,124,121,337,351,790,795,1214,1171,2520,2518,2533,2421,2234,2190,29980,29981,29984,29985,2660,1720,2012,1829,2083,2145,1483,1206]} 1. e4 {[%emt 0:00:00]} e6 {[%emt 0:07:53]} 2. d4 {[%emt 0:00:00]} d5 {[%emt 0:00:30]} 3. exd5 {[%emt 0:00:00]} exd5 {[%emt 0:00:30]} 4. Nf3 Nc6 5. h3 {[%emt 0:00:52]} Bd6 {[%emt 0:03:38]} 6. c4 {[%emt 1:32:38]} dxc4 {[%emt 0:04:21]} 7. Bxc4 {[%emt 0:00:00]} Nf6 {[%emt 0:00:15]} 8. O-O {[%emt 0:00:00]} O-O {[%emt 0:00:06]} 9. Nc3 {[%emt 0:00:00]} h6 {[%emt 0:05:55]} 10. Qc2 {[%emt 0:00:00]} Na5 {[%emt 0:15:53]} 11. Bd3 {[%emt 0:00:00]} Be6 {[%emt 0:01:56]} 12. Re1 {[%emt 0:00:00] The position is equal.} Re8 {[%emt 0:17:31]} 13. Bd2 {[%emt 0:00:00][%cal Od4d5]} Nc6 $1 {[%emt 0:10:40][%cal Ba5c6,Bc6e7,Be7d5,Bd5b6][%mdl 32]} 14. a3 {[%emt 0:00:00] Inhibits Nb4.} Ne7 {[%emt 0:03:37]} 15. Ne5 {[%emt 0:00:00]} Ned5 {[%emt 0:02:57]} 16. Na4 {[%emt 0:00:00]} Nb6 {[%emt 0:05:25]} 17. Nc5 {[%emt 0:00:00]} Bd5 {[%emt 0:00:06]} 18. Re3 {[%emt 0:00:00][%cal Be1e3,Be3g3,Bg3f3,Bf3f6][%mdl 32]} Rb8 {[%emt 0:07:32]} (18... Nbd7 $14 19. Nexd7 Nxd7) 19. Rae1 $16 {[%emt 0:00:00] White is much more active.} c6 {[%emt 0:00:27]} 20. b4 {[%emt 0:00:00]} Re7 {[%emt 0:01:20]} 21. Qd1 {[%emt 0:00:00] Strongly threatening Rg3.} Qc7 $2 {[%emt 0:05:41] This costs Black the game.} (21... Qf8 $16 22. a4 Bxe5 23. dxe5 Nfd7) 22. Rg3 $18 {[%emt 0:00:00]} Ne8 $2 {[%emt 0:04:18]} (22... Rxe5 23. dxe5 Bxe5) 23. Qh5 {[%emt 0:00:00]} f6 {[%emt 0:00:44][%cal Bf7f6,Bf6e5][%mdl 32] [#]} 24. Qxh6 $1 {[%emt 0:00:00] White wants to mate with Bh7+.} fxe5 {[%emt 0:00:26]} (24... f5 25. Bxf5) 25. Qh7+ {[%emt 0:00:00]} Kf8 {[%emt 0:00:11]} 26. Qh8+ {[%emt 0:00:00]} Bg8 {[%emt 0:00:52]} 27. Rf3+ {[%emt 0:00:00]} Nf6 {[%emt 0:00:40] [#]} 28. Rxf6+ $3 {[%emt 0:00:00][%mdl 512]} Rf7 {[%emt 0:00:27]} (28... gxf6 29. Bh6+) 29. Ne6+ {[%emt 0:00:00]} Ke7 {[%emt 0:00:04]} 30. Nxc7 {[%emt 0:00:00] White is clearly winning.} gxf6 {[%emt 0:00:04]} 31. dxe5 {[%emt 0:00:25]} fxe5 {[%emt 0:00:04]} 32. Rxe5+ {[%emt 0:01:20]} Kd7 {[%emt 0:00:07] [#]} 33. Re8 $1 {[%emt 0:11:45] Weighted Error Value: White=0.02 (flawless) /Black=0.52.  Loses game:     	---       	Black=1      Mistake:       	---       	Black=2      Inaccurate:     	---       	Black=3      OK:         	White=8     	Black=3      Best:        	White=2     	---        Strong:       	---       	Black=1} 1-0

[Event "VIII Open Semana Santa 2024"]
[Site "San Vicente del Raspeig"]
[Date "2024.03.29"]
[Round "4.5"]
[White "Habans Aguerrea, Javier"]
[Black "Kourkoulos-Arditis, Stamatis"]
[Result "0-1"]
[ECO "E62"]
[WhiteElo "2399"]
[BlackElo "2556"]
[Annotator "TA"]
[PlyCount "94"]
[EventDate "2024.03.27"]
[EventType "swiss"]
[EventCountry "ESP"]
[SourceTitle "playchess.com"]
[Source "ChessBase"]
[SourceQuality "1"]
[TimeControl "5400+30"]

{[%evp 19,94,0,17,0,-2,-1,0,-3,-9,-16,-11,0,0,0,1,0,0,0,0,0,0,0,0,0,0,-8,0,0,0,0,0,-14,-12,-10,-11,-79,-71,-81,-92,-93,-93,-102,-60,-128,-128,-411,-393,-375,-424,-452,-443,-441,-428,-1433,-1496,-2522,-3258,-5389,-3576,-6079,-2138,-1455,-1674,-9233,-2986,-2418,-1550,-9248,-9248,-29975,-29972,-29983,-9248,-9248,-6223,-1787,-872]} 1. c4 {[%emt 0:00:04]} Nf6 {[%emt 0:00:06]} 2. Nc3 {[%emt 0:00:18]} g6 {[%emt 0:00:30]} 3. g3 {[%emt 0:00:30]} Bg7 {[%emt 0:00:30]} 4. Bg2 {[%emt 0:00:30]} O-O {[%emt 0:00:30]} 5. d4 {[%emt 0:00:30]} d6 {[%emt 0:00:30]} 6. Nf3 {[%emt 0:00:30]} c6 {[%emt 0:00:30]} 7. O-O Bf5 8. b3 {[%emt 0:12:33]} Ne4 {[%emt 0:00:39]} 9. Nxe4 {[%emt 0:02:05]} Bxe4 {[%emt 0:00:06]} 10. Bb2 {[%emt 0:00:05]} Nd7 {[%emt 0:02:01]} 11. Nd2 {[%emt 0:03:56]} Bxg2 {[%emt 0:01:15]} 12. Kxg2 {[%emt 0:00:03]} b5 {[%emt 0:12:07]} 13. cxb5 {[%emt 0:03:22] The position is equal.} cxb5 {[%emt 0:00:05]} 14. Nf3 {[%emt 0:02:58]} Qb6 {[%emt 0:03:57]} 15. Qd3 {[%emt 1:10:36]} Rfc8 {[%emt 0:06:05]} 16. Rac1 {[%emt 0:00:00]} a6 {[%emt 0:07:43]} 17. Rxc8+ {[%emt 0:00:00]} Rxc8 {[%emt 0:00:15]} 18. Rc1 {[%emt 0:00:00]} Rxc1 {[%emt 0:00:22]} 19. Bxc1 {[%emt 0:00:00]} Qc6 {[%emt 0:01:36] Prevents Qe4.} 20. Bg5 {[%emt 0:00:00]} Nf6 {[%emt 0:01:27]} 21. Bxf6 {[%emt 0:00:00]} Bxf6 $11 {[%emt 0:00:38][%mdl 4096] Endgame. KQB-KQN} 22. e4 {[%emt 0:00:00]} Bg7 {[%emt 0:05:14]} 23. h4 {[%emt 0:00:00]} h6 {[%emt 0:01:16]} 24. Ng1 {[%emt 0:00:00]} Qc1 {[%emt 0:08:26]} 25. Ne2 {[%emt 0:00:00]} Qa1 {[%emt 0:00:42]} 26. Qd2 {[%emt 0:00:00]} h5 {[%emt 0:01:33]} 27. Qa5 {[%emt 0:00:00] [#]} (27. Nc3 $11) 27... Qd1 $1 $17 {[%emt 0:04:28] Black is more active.} 28. Qd8+ {[%emt 0:00:00]} Bf8 {[%emt 0:00:09]} 29. Nf4 {[%emt 0:00:00]} Qxd4 {[%emt 0:00:12]} 30. Qa8 {[%emt 0:00:00][%cal Of4h3]} e6 {[%emt 0:02:41]} 31. Qc6 {[%emt 0:01:53]} ({White should play} 31. Nh3 $1 $15) 31... Bh6 {[%emt 0:06:56]} 32. Kf3 $2 {[%emt 0:02:03][%mdl 8192] Loses the game.} (32. Nh3 $17) 32... Qd1+ $19 {[%emt 0:05:59]} 33. Kg2 {[%emt 0:00:07]} Bxf4 {[%emt 0:00:06]} 34. gxf4 {[%emt 0:00:04] KQ-KQ} Qg4+ {[%emt 0:01:23]} 35. Kf1 {[%emt 0:00:02]} Qxh4 {[%emt 0:00:28]} (35... Qxf4 36. Qxa6 Qxh4 37. Qxd6 Qh1+ (37... Qxe4 38. Qb8+ Kh7 39. Qxb5 $17) 38. Ke2 Qxe4+ 39. Kf1) 36. e5 {[%emt 0:00:55]} (36. f5 $142 Qh1+ (36... gxf5 $2 37. exf5 Qh3+ 38. Kg1 $19) 37. Ke2 exf5 (37... gxf5 $2 38. Qc8+ Kg7 39. exf5 $19) 38. Qc8+ Kg7 39. exf5 Qe4+ 40. Kf1 Qd3+ (40... Qxf5 $2 41. Qxa6 Qd3+ 42. Kg1 $19) (40... gxf5 $2 41. Qc3+ Qe5 42. Qf3 $19) 41. Kg2) 36... d5 {[%emt 0:06:24]} ({And not} 36... Qxf4 37. exd6 Qg4 38. a3 $11) 37. Qxa6 {[%emt 0:00:07]} Qh1+ {[%emt 0:00:16]} 38. Ke2 {[%emt 0:00:02]} Qe4+ {[%emt 0:00:05]} 39. Kf1 {[%emt 0:00:10]} b4 {[%emt 0:01:42]} (39... d4 $142 40. Qa5 d3 (40... Qxf4 $2 41. a4 $19)) 40. a4 {[%emt 0:01:11]} bxa3 {[%emt 0:00:43]} 41. Qxa3 {[%emt 0:00:09]} Qxf4 {[%emt 0:02:41]} (41... d4 $142 42. Qb4 h4 (42... Qxf4 $2 43. Qc4 $19)) 42. b4 {[%emt 0:00:13]} Qc4+ {[%emt 0:00:06]} 43. Ke1 {[%emt 0:01:02]} h4 {[%emt 0:00:28] ( -> ...Qg4)} 44. Qa5 {[%emt 0:03:52]} Kg7 {[%emt 0:01:40]} 45. Qa3 {[%emt 0:01:15] [#]} h3 {[%emt 0:00:58]} 46. Qxh3 {[%emt 0:00:36]} Qxb4+ {[%emt 0:00:03]} 47. Kf1 {[%emt 0:00:38]} Qb1+ {[%emt 0:00:10] Weighted Error Value: White=1.19/Black=0.40.  Loses game:     	White=1     	---        Mistake:       	White=3     	---        Inaccurate:     	White=1     	Black=1      OK:         	White=7     	Black=11     Best:        	White=2     	Black=3      Strong:       	---       	Black=1} 0-1

[Event "VIII Open Semana Santa 2024"]
[Site "San Vicente del Raspeig"]
[Date "2024.03.29"]
[Round "4.6"]
[White "Basso, Pier Luigi"]
[Black "Hristodoulou, Panagiotis"]
[Result "1/2-1/2"]
[ECO "C11"]
[WhiteElo "2503"]
[BlackElo "2376"]
[Annotator "TA"]
[PlyCount "126"]
[EventDate "2024.03.27"]
[EventType "swiss"]
[EventCountry "ESP"]
[SourceTitle "playchess.com"]
[Source "ChessBase"]
[SourceQuality "1"]
[TimeControl "5400+30"]

{[%evp 25,126,-26,-15,-16,-18,-34,-38,-33,-17,-22,-23,-29,-15,-22,-21,-5,-11,-12,0,0,0,0,0,0,0,0,0,0,0,0,0,-13,-14,-177,-133,-142,-184,-198,-188,-198,-201,-150,-121,-241,-202,-204,-107,-100,-83,-113,-83,-91,-118,-130,-128,-756,-345,-647,-385,-379,-233,-262,-269,-204,-204,-1664,-1656,-1301,-659,-1785,-1778,-1587,-1303,-1160,-1050,-2097,0,0,0,0,0,0,0,0,0,0,0,0,0,0,0,0,0,0,0,0,0,0,0,0,0,0,0]} 1. e4 {[%emt 0:04:33]} e6 {[%emt 0:05:32]} 2. d4 {[%emt 0:00:07]} d5 {[%emt 0:00:06]} 3. Nc3 {[%emt 0:00:10]} Nf6 {[%emt 0:00:56]} 4. e5 {[%emt 0:00:06]} Nfd7 {[%emt 0:00:09]} 5. f4 {[%emt 0:00:10]} c5 {[%emt 0:00:09]} 6. Nf3 {[%emt 0:00:05]} Nc6 {[%emt 0:00:08]} 7. Be3 {[%emt 0:00:07]} cxd4 {[%emt 0:00:46]} 8. Nxd4 {[%emt 0:00:06]} Bc5 {[%emt 0:00:12]} 9. Qd2 {[%emt 0:00:24]} O-O {[%emt 0:00:12]} 10. O-O-O {[%emt 0:00:27]} Bxd4 {[%emt 0:00:08] C11: French: Classical System: 4 e5 and 4 Bg5 dxe4.} 11. Bxd4 {[%emt 0:00:07]} Qa5 {[%emt 1:27:42]} 12. h4 {[%emt 0:04:44]} Rb8 {[%emt 0:00:30]} 13. h5 {[%emt 0:06:36]} b5 $1 {[%emt 0:00:00]} 14. h6 $146 {[%emt 0:01:50]} ({Predecessor:} 14. Kb1 b4 15. Ne2 Ba6 16. Nc1 Bxf1 17. Rdxf1 Nb6 18. h6 g6 19. Qf2 Nc4 20. Nb3 {0-1 Golizadeh,A (2455)-Spyropoulos,N (2445) Titled Tuesday intern op 14th Sept blitz 2021 (6)}) 14... g6 {[%emt 0:00:00]} 15. Kb1 {[%emt 0:02:32]} b4 {[%emt 0:00:00]} 16. Ne2 {[%emt 0:00:08]} Ba6 {[%emt 0:00:00]} 17. Nc1 {[%emt 0:04:07]} Bxf1 {[%emt 0:00:00]} 18. Rhxf1 {[%emt 0:00:16]} Nxd4 {[%emt 0:00:00]} 19. Qxd4 {[%emt 0:00:07]} Qb6 {[%emt 0:00:00]} (19... Rfc8 {is more complex.} 20. Qf2 Rc4 21. g4 Rbc8) 20. Qxb6 {[%emt 0:03:52]} Rxb6 {[%emt 0:00:00]} 21. Nd3 {[%emt 0:00:06]} Rc8 {[%emt 0:00:00]} 22. g4 {[%emt 0:02:09]} a5 {[%emt 0:00:00]} 23. b3 {[%emt 0:09:24]} Nc5 {[%emt 0:00:00]} 24. Nxc5 {[%emt 0:10:45]} Rxc5 {[%emt 0:00:00]} 25. Rd3 {[%emt 0:05:24]} Kf8 {[%emt 0:00:00]} 26. Kb2 {[%emt 0:00:15]} Rbc6 {[%emt 0:00:00]} 27. Rf2 {[%emt 0:00:06]} Ke7 {[%emt 0:00:00]} 28. Rdf3 {[%emt 0:00:57]} Rc3 {[%emt 0:00:00]} 29. f5 $2 {[%emt 0:04:01]} (29. Rd3 $11) 29... Rxf3 {[%emt 0:00:00]} 30. Rxf3 {[%emt 0:00:50]} exf5 {[%emt 0:00:00]} 31. gxf5 {[%emt 0:00:05]} gxf5 {[%emt 0:00:00]} 32. Rxf5 {[%emt 0:00:28]} Rxh6 {[%emt 0:00:00]} 33. a3 {[%emt 0:00:03]} Rh4 {[%emt 0:00:00]} ({Don't do} 33... Ke6 34. Rf4 $17) 34. axb4 {[%emt 0:00:05]} (34. Rf6 $17) 34... axb4 {[%emt 0:00:00]} 35. Rf6 {[%emt 0:42:48]} Re4 {[%emt 0:00:00]} ({Better is} 35... h5 $19 {Strongly threatening ...Rg4.} 36. Rh6 Kf8) 36. Rh6 $17 {[%emt 0:00:00]} Rxe5 {[%emt 0:00:00]} 37. Rxh7 {[%emt 0:00:00]} Ke6 {[%emt 0:00:00]} 38. Kc1 {[%emt 0:00:00]} Re4 {[%emt 0:00:00]} 39. Kd2 {[%emt 0:00:00]} f5 {[%emt 0:00:00]} 40. c3 $2 {[%emt 0:00:00][%mdl 8192]} (40. Kd3 $17) 40... Ke5 {[%emt 0:01:38]} (40... f4 $142 41. cxb4 Rxb4) 41. cxb4 $2 {[%emt 0:00:00]} (41. Re7+ Kf4 42. Rd7) 41... Rxb4 $19 {[%emt 0:00:05]} 42. Kc3 {[%emt 0:00:00]} Rb8 {[%emt 0:00:51]} 43. Re7+ {[%emt 0:00:00] [#]} Kf6 $1 {[%emt 0:00:55]} 44. Re1 {[%emt 0:00:00]} f4 {[%emt 0:00:37]} 45. Rb1 $2 {[%emt 0:00:00]} (45. b4) 45... Kf5 $19 {[%emt 0:04:18]} 46. Kd3 {[%emt 0:00:00]} Kg4 {[%emt 0:06:08]} 47. b4 {[%emt 0:00:00]} Kg3 {[%emt 0:00:57]} 48. Kd4 {[%emt 0:00:00]} Rd8 {[%emt 0:01:01]} 49. Rg1+ {[%emt 0:00:00]} Kf2 {[%emt 0:00:02]} 50. Rg5 {[%emt 0:00:00] [#]} f3 $2 {[%emt 0:00:09]} (50... Rb8 $1 $19 51. Kc5 d4) 51. b5 $1 $11 {[%emt 0:00:00]} Rf8 {[%emt 0:02:17]} 52. Kxd5 {[%emt 0:00:00]} Ke3 {[%emt 0:00:06]} 53. Rg1 {[%emt 0:00:00]} f2 {[%emt 0:00:35]} 54. Rf1 {[%emt 0:00:00]} Ke2 {[%emt 0:00:10]} 55. Rxf2+ {[%emt 0:00:00]} Kxf2 {[%emt 0:00:35]} 56. b6 {[%emt 0:00:00]} Ke3 {[%emt 0:00:05]} 57. b7 {[%emt 0:00:00]} Kd3 {[%emt 0:00:27]} 58. Kc6 {[%emt 0:00:00]} Kc4 {[%emt 0:00:05]} 59. Kc7 {[%emt 0:00:00]} Rf7+ {[%emt 0:00:07]} 60. Kc6 {[%emt 0:00:00]} Rf8 {[%emt 0:00:33]} 61. Kc7 {[%emt 0:00:00]} Kc5 {[%emt 0:00:06]} 62. b8=Q {[%emt 0:00:00]} Rxb8 {[%emt 0:00:07]} 63. Kxb8 {[%emt 0:00:00]} Kd5 {[%emt 0:03:36]} 1/2-1/2